Workbook

Sheet Console
B3: Console Commands | E3: Help | G3: List all Console Commands
D5: 1 | E5: GM | G5: God Mode
D6: 2 | E6: IM | G6: Item Menu
D7: 3 | E7: SBP | G7: Spawn blueprint on/off
E9: DI | G9: Debug Info
E10: FBP | G10: Finish Current Blueprint Construction
E11: SI | G11: Switches Structural Integrity on/off
E14: help | G14: list all commands
E15: generatemap | G15: generates 2D map image of the current world
E16: mergestructs | G16: merge 2 structures into 1
E18: destroy 1014 | G18: delete craft ID 1014

Sheet ToDo
B2: Key Features
C3: System Accessibility
C4: 2x Sathium Armor Plating
C5: Interior Steel Pressure Hull
C6: Functional Bulkheads triggered with Battlestations
C7: Dual Carrier Wing Outrider Hangars (24+ craft per wing)
C8: 12 5x5 Ready-Launch Positions per Hangar
C9: Central VTOL landing craft hangar with HV garage space
C10: Central Port and Star Hangars for mining and gathering SVs
C11: Aft engineering dock for shuttles and ferrying
C12: 36x 320k prefab internal storage units (default is 28 cargo, 6 ammo, 2 ore) with easy access to controllers to change the mix between: cargo, ammo, and ore
C13: Central Hangar Vertical Landing System
M14: Prox
B15: Ship Areas | H15: Prox | I15: Switch | J15: Ventilation | M15: Cover
B16: 1 | C16: Archives Port & Star | H16: 1 | I16: 0 | J16: 1 | M16: Archive Prox | AC16: 1 | AD16: A
B17: 2 | C17: Barracks - Brig (upper Engineering area) | H17: 1 | I17: 0 | J17: 1 | U17: test door codes | AC17: 2 | AD17: B
B18: 3 | C18: Barracks - Captain's Quarters | H18: 0 | I18: 0 | J18: 1 | AC18: 3 | AD18: C
B19: 4 | C19: Barracks - CBs "The Hive" | H19: 1 | I19: 1 | J19: 1 | M19: CB Prox | AC19: 4 | AD19: D
B20: 5 | C20: Barracks - Crew 20 Bunk Port & 20 Bunk Star | H20: 0 | I20: 0 | J20: 0 | AC20: 5 | AD20: E
B21: 6 | C21: Barracks - Cylon | H21: 0 | I21: 0 | J21: 0 | AC21: 6 | AD21: F
B22: 7 | C22: Barracks - Space Marine | H22: 0 | I22: 0 | J22: 0 | AC22: 7 | AD22: G
B23: 8 | C23: Barracks - Squadrons Port & Star | H23: 1 | I23: 1 | J23: 0 | U23: test shower access codes | AC23: 8 | AD23: H
B24: 9 | C24: Barracks - Staterooms Ruby & Emerald | H24: 1 | I24: 1 | J24: 1 | AC24: 9 | AD24: I
B25: 10 | C25: Bow - Installations | H25: 1 | I25: 0 | J25: 0 | AC25: 10 | AD25: J
B26: 11 | C26: Bow - Observation and Mining Control | H26: 1 | I26: 0 | J26: 0 | AC26: 11 | AD26: K
B27: 12 | C27: Cargo - Central Fuel Storage | H27: 0 | I27: 0 | J27: 1 | AC27: 12 | AD27: L
B28: 13 | C28: Cargo - Main Hold 36x 320k | H28: 0 | I28: 0 | J28: 1 | P28: cold storage has no air - might be good? | U28: Determine Contents | AC28: 13 | AD28: M
B29: 14 | C29: Cargo - Production | H29: 1 | I29: 0 | J29: 1 | AC29: 14 | AD29: N
B30: 15 | C30: CB - Fabrication Port & Star | H30: 1 | I30: 0 | J30: 1 | AC30: 15 | AD30: O
B31: 16 | C31: CB - Hovercraft Garage | H31: 1 | I31: 0 | J31: 0 | U31: Fits 6 Wolverines 3 on each side - add T parking symbols? | AC31: 16 | AD31: P
B32: 17 | C32: CB - Lab Port "Fun Factory" | H32: 1 | I32: 1 | J32: 0 | AC32: 17 | AD32: Q
B33: 18 | C33: Central Command | H33: 1 | I33: 0 | J33: 1 | AC33: 18 | AD33: R
B34: 19 | C34: Central Command - Corridor 1 | H34: 1 | I34: 0 | J34: 1 | AC34: 19 | AD34: S
B35: 20 | C35: Corridors - Bulkheads | H35: 0 | I35: 1 | J35: 0 | M35: n/a | AC35: 20 | AD35: T
B36: 21 | C36: Corridors - Hallways | H36: 0 | I36: 0 | J36: 0 | M36: n/a | AC36: 21 | AD36: U
B37: 22 | C37: Engineering - Breezeway | H37: 1 | I37: 0 | J37: 1 | P37: 8 | AC37: 22 | AD37: V
B38: 23 | C38: Engineering - Engine Rooms Port & Star | H38: 0 | I38: 0 | J38: 0 | M38: Eng Prox | P38: 6 | AC38: 23 | AD38: W
B39: 24 | C39: Engineering - Fuel Storage Port & Star | H39: 0 | I39: 0 | J39: 0 | P39: 48 | AC39: 24 | AD39: X
B40: 25 | C40: Engineering - Main Thruster Access | H40: 0 | I40: 0 | J40: 0 | M40: Eng Prox | P40: 6 | AC40: 25 | AD40: Y
B41: 26 | C41: Engineering - Shield Housing | H41: 0 | I41: 0 | J41: 0 | M41: Eng Prox | P41: 8 | AC41: 26 | AD41: Z
B42: 27 | C42: Engineering - Shield Power Management | H42: 0 | I42: 0 | J42: 0 | M42: Eng Prox | P42: 4
B43: 28 | C43: Engineering - Warp Core | H43: 0 | I43: 0 | J43: 0 | P43: =SUM(P37:P42) -> 80
B44: 29 | C44: Hangars - Aft Shuttle | H44: 0 | I44: 0 | J44: 0 | M44: Eng Prox
B45: 30 | C45: Hangars - CB Central | H45: 1 | I45: 0 | J45: 0 | M45: Central A-E | AB45: 13 | AC45: 2 | AD45: =AB45*AC45 -> 26
B46: 31 | C46: Hangars - CB Central Repair Bay | H46: 1 | I46: 0 | J46: 0 | AB46: 16 | AC46: 2 | AD46: =AB46*AC46 -> 32
B47: 32 | C47: Hangars - Gravity Ext Access Port & Star | H47: 0 | I47: 0 | J47: 0 | U47: Anything we can do to improve? | AB47: 1 | AC47: 2 | AD47: =AB47*AC47 -> 2
B48: 33 | C48: Hangars - Outrider Port & Star | H48: 1 | I48: 0 | J48: 0 | AB48: 20 | AC48: 4 | AD48: =AB48*AC48 -> 80
B49: 34 | C49: Hangars - Ready Rooms Port & Star | H49: 0 | I49: 0 | J49: 0 | AB49: 7 | AC49: 1 | AD49: =AB49*AC49 -> 7
B50: 35 | C50: Hangars -Auxiliary Port & Star | H50: 0 | I50: 0 | J50: 0 | AA50: central : | AD50: =SUM(AD45:AD49) -> 147 | AE50: =AD50*6 -> 882
B51: 36 | C51: Hydroponics - Cold Storage Port & Star | H51: 1 | I51: 0 | J51: 0 | U51: Can we number the fridges? | AA51: upper : | AB51: 17 | AC51: 2 | AD51: =AB51*AC51 -> 34 | AE51: =AD51*6 -> 204 | AF51: =AB51*6 -> 102
B52: 37 | C52: Hydroponics - Equipment Access Port & Star | H52: 0 | I52: 0 | J52: 0 | AA52: lower : | AB52: 16 | AC52: 2 | AD52: 32 | AE52: 192 | AF52: =AB52*6 -> 96
B53: 38 | C53: Hydroponics - Oxygen Reservoir | H53: 0 | I53: 0 | J53: 1 | AD53: =SUM(AD50:AD52) -> 213 | AE53: =SUM(AE50:AE52) -> 1278
B54: 39 | C54: Hydroponics - Plots Port & Star | H54: 1 | I54: 1 | J54: 0 | U54: Pharmacy Recipes
B55: 40 | C55: Lab - Alien Observation & Biocontainment | H55: 1 | I55: 0 | J55: 0 | U55: Test Alien Observation access code | AB55: Zeus | AC55: Gal | AD55: Emp
B56: 41 | C56: Lab - Cylon Dev & 3D Printing | H56: 1 | I56: 0 | J56: 0 | AA56: Fuel | AB56: 366000 | AC56: 709200 | AD56: =AE56*AF56 -> 1278000 | AE56: 213 | AF56: 6000
B57: 42 | C57: Lab - Medical Port & Star | H57: 1 | I57: 0 | J57: 0 | AA57: oxy | AB57: 138000 | AC57: 132000 | AD57: =AE57*AF57 -> 216000 | AE57: 108 | AF57: 2000
B58: 43 | C58: Lab - Quantum Physics | H58: 0 | I58: 0 | J58: 0
B59: 44 | C59: Lab - Weapons Testing & Certification | H59: 1 | I59: 1 | J59: 0 | AB59: =AB56/$AD$56 -> 0.2863849765 | AC59: =AC56/$AD$56 -> 0.5549295775
B60: 45 | C60: Lounge - Bluepoint Café | H60: 1 | I60: 0 | J60: 0 | AB60: =AB57/$AD$57 -> 0.6388888889 | AC60: =AC57/$AD$57 -> 0.6111111111
B61: 46 | C61: Lounge - Moonshadow | H61: 1 | I61: 0 | J61: 0
B62: 47 | C62: Lounge - Starlighter | H62: 1 | I62: 0 | J62: 1 | U62: steel blocks behind command LCDs need gloss black finish
B63: 48 | C63: Scaffolds | H63: 0 | I63: 1 | J63: 1
U65: Name Fridges in Cold Storage areas
C66: To Do
C67: More Crew | U67: wireless front and back
C68: More Benches
C69: Point Defense group
C70: Low Power setting
C71: Change Officer quarter light ref
C72: Assign Weapon Targets
C73: Numbering Conventions for non-chute craft - 3-digits, use incremental numbers, and start with a value higher than squadron numbers | U73: Change spawn name to Empyrica
C74: Zero-G training area terminal text | U74: Add a log LCD for hovercraft on assignment
C75: Arrival & Departure Lighting
C76: Gravity Zones
C77: Masterlock Furniture, Toilets, Showers
C78: Battlestations triggers shields and main thrusters
C79: command seats trigger maneuvering thrusters
AA81: 8
S86: Weapon Mounts
C87: Update the Caravan for a CB version that includes a constructor | S87: 5x5 | T87: 3x3
C88: Update the Wolverine for Weight/Balance | S88: 2 | T88: 38 | U88: top
C89: Woverine Camo Patterns for Biomes | S89: 4 | T89: 4 | U89: outrider tops
C90: Design a Bomber | T90: 4 | U90: outrider sides
C91: Design Fighter like the Mando Fang | S91: 8 | T91: 24 | U91: outrider bottoms
C92: Design Support Med hovercraft like a hover bradley | T92: 31 | U92: bottom
C93: Hover Suit for POI work
C94: Small Hovercraft won't load on the Freelander
S96: =SUM(S88:S95) -> 14 | T96: =SUM(T88:T95) -> 101
C99: Grav 1 | E99: Grav 2
C100: Oxygen Res | E100: Fridge Port
C101: Observation | E101: Fridge Star
E102: Central Hangar
E103: Fabrication Port
E104: Fabrication Star

Sheet Notes
B2: 2022-03-02 | C2: First Screen Shot
B3: =TODAY() -> 2023-12-06
B4: =(TODAY()-B2)/365 -> 1.764383562
B6: Battlestar Galactica
B8: Leng | C8: 2000
B10: Engines | C10: 6 | D10: Sublight
B11: Engines | C11: 40 | D11: Maneuvering
B12: FTL | C12: 2 | D12: at least
B18: Gravity Dead Zones
C19: walkway ramp up - start in central landing craft area, proceed past the bridge
B23: Squadrons
A25: Skull | B25: Jolly Rogers | C25: Black | D25: Black Yellow | F25: VFA-103
A26: flame skull | B26: Ghost Riders | C26: Orange | D26: Orange Green | F26: VA-164 | G26: Disbanded | K26: Lightning Bolt
A27: Sun | B27: Sun Downers | C27: Yellow | D27: Red White Yellow | F27: VF-111
A28: Diamond | B28: Diamondbacks | C28: Red | D28: Red White | F28: VFA-102 | I28: Callsign Diamond
A29: gun barrel | B29: Gunfighters | C29: Lt Blue | D29: Light Blue Black | F29: VF-124 | M29: "Anytime Baby"
A30: slashes | B30: Swordsmen | C30: Dk Blue | D30: Blue Gold | F30: VFA-32 | G30: Deus Et Patria | I30: Callsign Gypsy | K30: Lion and Sword | M30: "Crazy Cats" | O30: "For God and Country"
B33: Wolfpack | D33: Red White | F33: VF-1
B34: Checkmates | D34: Red Lt Blue Black
B35: Golden Warriors | D35: Red Gold Black | F35: VFA-87
B36: Black Aces | D36: Black White Red | F36: VF-41
B37: Black Knights | D37: Black Red | F37: VFA-154
B40: Rough Raiders | D40: Green Grey | F40: VFA-125 | G40: Training and Replacement Squadron
B44: Top Hatters | C44: White | D44: Black White Red | F44: VFA-14 | G44: Fighting 14
B49: VFA | C49: Fixed Wing Fighter Attack | F49: CVW-1 | G49: Carrier Air Wing 1
B50: SFA | C50: Space Wing Fighter Attack | F50: BSW-1 | G50: Battlestar Space Wing 1
G53: Chutes | H53: BSW-1: 6 Squadrons | O53: Space Marine Wolverine Company
K54: Craft | L54: Role
E55: Port | F55: A | G55: 4 | H55: Swordsmen | J55: SFA-032 | O55: Platoon A
C56: Big Red Barn | E56: Port | F56: B | G56: 4 | H56: Jolly Rogers | J56: SFA-103 | K56: Corsair | L56: LR Interceptor | O56: Platoon B
E57: Port | F57: C | G57: 4 | H57: Ghost Riders | J57: SFA-164 | K57: Starbolt | L57: Space Superiority | O57: Platoon C
E58: Star | F58: D | G58: 4 | H58: Diamondbacks | J58: SFA-102 | K58: Viper-X | O58: Platoon D
C59: Green Giant | E59: Star | F59: E | G59: 4 | H59: Sun Downers | J59: SFA-111 | L59: Rescue/Support | O59: Med Evac
E60: Star | F60: F | G60: 4 | H60: Gunfighters | J60: SFA-124 | K60: Kiowa | L60: Close Air Support | O60: Seal Team
G61: =SUM(G55:G60) -> 24
E62: Central | F62: G | H62: Seabees | O62: Seabees
E63: Port | F63: H
E64: Star | F64: I
E66: Aft | F66: J | H66: Shuttle/Ferry | O66: Cylon Centurions
E68: Port | F68: K
E69: Star | F69: L
H78: K-Class Sun

Sheet Scaling
IS9: 1
Z10: 1 | AA10: 1 | AB10: 1 | AC10: 1 | AD10: 1 | AE10: 1 | AF10: 1 | AG10: 1 | AH10: 1 | AI10: 1 | AJ10: 1 | AK10: 1 | AL10: 1 | AM10: 1 | AN10: 1 | AO10: 1 | AP10: 1 | AQ10: 1 | AR10: 1 | AS10: 1 | AT10: 1 | IS10: 1
Z11: 1 | AA11: 1 | IS11: 1
Z12: 1 | AA12: 1 | IS12: 1
Z13: 1 | AA13: 1 | IS13: 1
IS14: 1
BF15: 1 | BG15: 1 | BH15: 1 | BI15: 1 | BJ15: 1 | BK15: 1 | BL15: 1 | BM15: 1 | BN15: 1 | BO15: 1 | BP15: 1 | BQ15: 1 | BR15: 1 | BS15: 1 | BT15: 1 | BU15: 1 | BV15: 1 | BW15: 1 | BX15: 1 | BY15: 1 | BZ15: 1 | CA15: 1 | IS15: 1
BF16: 1 | BG16: 1 | BH16: 1 | BI16: 1 | BJ16: 1 | BK16: 1 | BL16: 1 | BM16: 1 | BN16: 1 | BO16: 1 | BP16: 1 | BQ16: 1 | BR16: 1 | BS16: 1 | BT16: 1 | BU16: 1 | BV16: 1 | BW16: 1 | BX16: 1 | BY16: 1 | BZ16: 1 | CA16: 1 | IS16: 1
BF17: 1 | BG17: 1 | BH17: 1 | BI17: 1 | BJ17: 1 | BK17: 1 | BL17: 1 | BM17: 1 | BN17: 1 | BO17: 1 | BP17: 1 | BQ17: 1 | BR17: 1 | BS17: 1 | BT17: 1 | BU17: 1 | BV17: 1 | BW17: 1 | BX17: 1 | BY17: 1 | BZ17: 1 | CA17: 1 | IS17: 1
BF18: 1 | BG18: 1 | BH18: 1 | BI18: 1 | BJ18: 1 | BK18: 1 | BL18: 1 | BM18: 1 | BN18: 1 | BO18: 1 | BP18: 1 | BQ18: 1 | BR18: 1 | BS18: 1 | BT18: 1 | BU18: 1 | BV18: 1 | BW18: 1 | BX18: 1 | BY18: 1 | BZ18: 1 | CA18: 1 | IS18: 1
BF19: 1 | BG19: 1 | BH19: 1 | BI19: 1 | BJ19: 1 | BK19: 1 | BL19: 1 | BM19: 1 | BN19: 1 | BO19: 1 | BP19: 1 | BQ19: 1 | BR19: 1 | BS19: 1 | BT19: 1 | BU19: 1 | BV19: 1 | BW19: 1 | BX19: 1 | BY19: 1 | BZ19: 1 | CA19: 1 | IS19: 1
BF20: 1 | BG20: 1 | BH20: 1 | BI20: 1 | BJ20: 1 | BK20: 1 | BL20: 1 | BM20: 1 | BN20: 1 | BO20: 1 | BP20: 1 | BQ20: 1 | BR20: 1 | BS20: 1 | BT20: 1 | BU20: 1 | BV20: 1 | BW20: 1 | BX20: 1 | BY20: 1 | BZ20: 1 | CA20: 1 | IS20: 1
BF21: 1 | BG21: 1 | BH21: 1 | BI21: 1 | BJ21: 1 | BK21: 1 | BL21: 1 | BM21: 1 | BN21: 1 | BO21: 1 | BP21: 1 | BQ21: 1 | BR21: 1 | BS21: 1 | BT21: 1 | BU21: 1 | BV21: 1 | BW21: 1 | BX21: 1 | BY21: 1 | BZ21: 1 | CA21: 1 | FY21: 1 | FZ21: 1 | GA21: 1 | GB21: 1 | GC21: 1 | GD21: 1 | GE21: 1 | GF21: 1 | GG21: 1 | GH21: 1 | GI21: 1 | GJ21: 1 | GK21: 1 | GL21: 1 | GM21: 1 | GN21: 1 | GO21: 1 | GP21: 1 | GQ21: 1 | IS21: 1
FY22: 1 | GQ22: 1 | GR22: 1 | GS22: 1 | GT22: 1 | GU22: 1 | GV22: 1 | GW22: 1 | IS22: 1
FY23: 1 | GW23: 1 | GX23: 1 | GY23: 1 | GZ23: 1 | HA23: 1 | HB23: 1 | HC23: 1 | IS23: 1
FY24: 1 | HC24: 1 | HD24: 1 | HE24: 1 | HF24: 1 | HG24: 1 | HH24: 1 | HI24: 1 | IS24: 1
FY25: 1 | HI25: 1 | HJ25: 1 | HK25: 1 | HL25: 1 | HM25: 1 | HN25: 1 | IS25: 1
FY26: 1 | HN26: 1 | HO26: 1 | HP26: 1 | HQ26: 1 | HR26: 1 | IS26: 1
FY27: 1 | HR27: 1 | HS27: 1 | HT27: 1 | HU27: 1 | HV27: 1 | IS27: 1
FY28: 1 | HV28: 1 | HW28: 1 | HX28: 1 | HY28: 1 | HZ28: 1 | IS28: 1
FY29: 1 | HZ29: 1 | IA29: 1 | IB29: 1 | IC29: 1 | ID29: 1 | IS29: 1
FY30: 1 | ID30: 1 | IE30: 1 | IF30: 1 | IG30: 1 | IH30: 1 | IS30: 1
FY31: 1 | IH31: 1 | II31: 1 | IJ31: 1 | IK31: 1 | IL31: 1 | IS31: 1
FY32: 1 | IL32: 1 | IM32: 1 | IN32: 1 | IO32: 1 | IP32: 1 | IS32: 1
DR33: 1 | FY33: 1 | IS33: 1
AV34: 1 | AW34: 1 | AX34: 1 | AY34: 1 | AZ34: 1 | BA34: 1 | BB34: 1 | BC34: 1 | BD34: 1 | BE34: 1 | BF34: 1 | BG34: 1 | BH34: 1 | DR34: 1 | FE34: 1 | FY34: 1 | IS34: 1
AV35: 1 | AW35: 1 | AX35: 1 | AY35: 1 | AZ35: 1 | BA35: 1 | BB35: 1 | BC35: 1 | BD35: 1 | BE35: 1 | BF35: 1 | BG35: 1 | BH35: 1 | DR35: 1 | FE35: 1 | FY35: 1 | IS35: 1
AV36: 1 | AW36: 1 | AX36: 1 | AY36: 1 | AZ36: 1 | BA36: 1 | BB36: 1 | BC36: 1 | BD36: 1 | BE36: 1 | BF36: 1 | BG36: 1 | BH36: 1 | DR36: 1 | FE36: 1 | FY36: 1 | IS36: 1
AV37: 1 | AW37: 1 | AX37: 1 | AY37: 1 | AZ37: 1 | BA37: 1 | BB37: 1 | BC37: 1 | BD37: 1 | BE37: 1 | BF37: 1 | BG37: 1 | BH37: 1 | DR37: 1 | FE37: 1 | FY37: 1 | IS37: 1
DR38: 1 | FE38: 1 | FY38: 1 | IS38: 1
DR39: 1 | FE39: 1 | FY39: 1 | IS39: 1
DR40: 1 | FE40: 1 | FY40: 1 | IS40: 1
DR41: 1 | FE41: 1 | FY41: w | IS41: 1
DR42: 1 | FE42: 1 | FY42: 1 | IS42: 1
DR43: 1 | FE43: 1 | FY43: 1 | IS43: 1
DR44: 1 | FY44: 1 | IS44: 1
IA56: 1 | IB56: 1 | IC56: 1 | ID56: 1 | IE56: 1 | IF56: 1 | IG56: 1 | IH56: 1 | II56: 1 | IJ56: 1 | IK56: 1 | IL56: 1 | IM56: 1 | IN56: 1 | IO56: 1 | IP56: 1 | IQ56: 1 | IR56: 1 | IS56: 1 | IT56: 1 | IU56: 1 | IV56: 1
IA57: 1
IA58: 1
IA59: 1
IA60: 1
HU61: 1 | HV61: 1 | HW61: 1 | HX61: 1 | HY61: 1 | HZ61: 1 | IA61: 1
HU62: 1
HU63: 1
HU64: 1
HU65: 1
O70: 1 | P70: 1 | Q70: 1 | R70: 1 | S70: 1 | T70: 1 | U70: 1 | V70: 1 | W70: 1 | X70: 1 | Y70: 1 | Z70: 1 | AA70: 1 | AB70: 1 | AC70: 1 | AD70: 1 | AE70: 1 | AF70: 1 | AG70: 1 | AH70: 1 | AI70: 1 | AJ70: 1 | AK70: 1 | AL70: 1 | AM70: 1 | AN70: 1 | AO70: 1 | AP70: 1 | AQ70: 1 | AR70: 1 | AS70: 1 | AT70: 1 | AU70: 1 | AV70: 1 | AW70: 1 | AX70: 1 | AY70: 1 | AZ70: 1 | BA70: 1 | BB70: 1 | BC70: 1 | BD70: 1 | BE70: 1 | BF70: 1 | BG70: 1 | BH70: 1 | BI70: 1 | BJ70: 1 | BK70: 1 | BL70: 1 | BM70: 1 | BN70: 1 | BO70: 1 | BP70: 1 | BQ70: 1 | BR70: 1 | BS70: 1 | BT70: 1 | BU70: 1 | BV70: 1 | BW70: 1 | BX70: 1 | BY70: 1 | BZ70: 1 | CA70: 1 | CB70: 1 | CC70: 1 | CD70: 1 | CE70: 1 | CF70: 1 | CG70: 1 | CH70: 1 | CI70: 1 | CJ70: 1 | CK70: 1 | CL70: 1 | CM70: 1 | CN70: 1 | CO70: 1 | CP70: 1 | CQ70: 1 | CR70: 1 | CS70: 1 | CT70: 1 | CU70: 1 | CV70: 1 | CW70: 1 | CX70: 1 | CY70: 1 | CZ70: 1 | DA70: 1 | DB70: 1 | DC70: 1 | DD70: 1 | DE70: 1 | DF70: 1 | DG70: 1 | DH70: 1 | DI70: 1 | DJ70: 1 | DK70: 1 | DL70: 1 | DM70: 1 | DN70: 1 | DO70: 1 | DP70: 1 | DQ70: 1 | DR70: 1 | DS70: 1 | DT70: 1 | DU70: 1 | DV70: 1 | DW70: 1 | DX70: 1 | DY70: 1 | DZ70: 1 | EA70: 1 | EB70: 1 | EC70: 1 | ED70: 1 | EE70: 1 | EF70: 1 | EG70: 1 | EH70: 1 | EI70: 1 | EJ70: 1 | EK70: 1 | EL70: 1 | EM70: 1 | EN70: 1 | EO70: 1 | EP70: 1 | EQ70: 1 | ER70: 1 | ES70: 1 | ET70: 1 | EU70: 1 | EV70: 1 | EW70: 1 | EX70: 1 | EY70: 1 | EZ70: 1 | FA70: 1 | FB70: 1 | FC70: 1 | FD70: 1 | FE70: 1 | FF70: 1 | FG70: 1 | FH70: 1 | FI70: 1 | FJ70: 1 | FK70: 1 | FL70: 1 | FM70: 1 | FN70: 1 | FO70: 1 | FP70: 1 | FQ70: 1 | FR70: 1 | FS70: 1 | FT70: 1 | FU70: 1 | FV70: 1 | FW70: 1 | FX70: 1 | FY70: 1 | FZ70: 1 | GA70: 1 | GB70: 1 | GC70: 1 | GD70: 1 | GE70: 1 | GF70: 1 | GG70: 1 | GH70: 1 | GI70: 1 | GJ70: 1 | GK70: 1 | GL70: 1 | GM70: 1 | GN70: 1 | GO70: 1 | GP70: 1 | GQ70: 1 | GR70: 1 | GS70: 1 | GT70: 1 | GU70: 1 | GV70: 1 | GW70: 1 | GX70: 1 | GY70: 1 | GZ70: 1 | HA70: 1 | HB70: 1 | HC70: 1 | HD70: 1 | HE70: 1 | HF70: 1 | HG70: 1 | HH70: 1 | HI70: 1 | HJ70: 1 | HK70: 1 | HL70: 1 | HM70: 1 | HN70: 1 | HO70: 1 | HP70: 1 | HQ70: 1 | HR70: 1 | HS70: 1 | HT70: 1 | HU70: 1 | HV70: 1 | HW70: 1 | HX70: 1 | HY70: 1 | HZ70: 1 | IA70: 1 | IB70: 1 | IC70: 1 | ID70: 1 | IE70: 1 | IF70: 1 | IG70: 1 | IH70: 1 | II70: 1 | IJ70: 1 | IK70: 1 | IL70: 1 | IM70: 1 | IN70: 1 | IO70: 1 | IP70: 1 | IQ70: 1 | IR70: 1 | IS70: 1
IS71: 1
IS72: 1
IS73: 1
IS74: 1
IS75: 1
IS76: 1
IS77: 1
IS78: 1
IS79: 1
IS80: 1
IS81: 1
IS82: 1
HB83: 1 | HC83: 1 | HD83: 1 | HE83: 1 | HF83: 1 | HG83: 1 | HH83: 1 | HI83: 1 | HJ83: 1 | HK83: 1 | HL83: 1 | HM83: 1 | HN83: 1 | HO83: 1 | HP83: 1 | HQ83: 1 | HR83: 1 | HS83: 1 | HT83: 1 | HU83: 1 | HV83: 1 | HW83: 1 | HX83: 1 | HY83: 1 | IS83: 1
HN84: 1 | IS84: 1
HN85: 1 | IS85: 1
IS86: 1
GC87: 1 | GD87: 1 | GE87: 1 | GF87: 1 | GG87: 1 | GH87: 1 | GI87: 1 | IS87: 1
GC88: 1 | GI88: 1 | GJ88: 1 | GK88: 1 | GL88: 1 | GM88: 1 | GN88: 1 | GO88: 1 | IS88: 1
O89: 1 | P89: 1 | Q89: 1 | R89: 1 | S89: 1 | T89: 1 | U89: 1 | V89: 1 | W89: 1 | X89: 1 | Y89: 1 | Z89: 1 | AA89: 1 | AB89: 1 | AC89: 1 | AD89: 1 | AE89: 1 | AF89: 1 | AG89: 1 | AH89: 1 | AI89: 1 | AJ89: 1 | AK89: 1 | AL89: 1 | AM89: 1 | AN89: 1 | AO89: 1 | AP89: 1 | AQ89: 1 | AR89: 1 | AS89: 1 | AT89: 1 | AU89: 1 | AV89: 1 | AW89: 1 | AX89: 1 | AY89: 1 | AZ89: 1 | BA89: 1 | BB89: 1 | BC89: 1 | BD89: 1 | BE89: 1 | BF89: 1 | BG89: 1 | BH89: 1 | BI89: 1 | BJ89: 1 | BK89: 1 | BL89: 1 | BM89: 1 | BN89: 1 | BO89: 1 | BP89: 1 | GC89: 1 | GO89: 1 | GP89: 1 | GQ89: 1 | GR89: 1 | GS89: 1 | GT89: 1 | IS89: 1
BF90: 1 | BG90: 1 | BH90: 1 | BI90: 1 | BJ90: 1 | BK90: 1 | BL90: 1 | BM90: 1 | BN90: 1 | BO90: 1 | BP90: 1 | GC90: 1 | GT90: 1 | GU90: 1 | GV90: 1 | GW90: 1 | GX90: 1 | GY90: 1 | IS90: 1
BF91: 1 | BG91: 1 | BH91: 1 | BI91: 1 | BJ91: 1 | BK91: 1 | BL91: 1 | BM91: 1 | BN91: 1 | BO91: 1 | BP91: 1 | GC91: 1 | GY91: 1 | GZ91: 1 | HA91: 1 | HB91: 1 | HC91: 1 | HD91: 1 | IS91: 1
BF92: 1 | BG92: 1 | BH92: 1 | BI92: 1 | BJ92: 1 | BK92: 1 | BL92: 1 | BM92: 1 | BN92: 1 | BO92: 1 | BP92: 1 | GC92: 1 | HD92: 1 | HE92: 1 | HF92: 1 | HG92: 1 | HH92: 1 | IS92: 1
BF93: 1 | BG93: 1 | BH93: 1 | BI93: 1 | BJ93: 1 | BK93: 1 | BL93: 1 | BM93: 1 | BN93: 1 | BO93: 1 | BP93: 1 | GC93: 1 | HH93: 1 | HI93: 1 | HJ93: 1 | HK93: 1 | HL93: 1 | IS93: 1
BF94: 1 | BG94: 1 | BH94: 1 | BI94: 1 | BJ94: 1 | BK94: 1 | BL94: 1 | BM94: 1 | BN94: 1 | BO94: 1 | BP94: 1 | GC94: 1 | HL94: 1 | HM94: 1 | HN94: 1 | HO94: 1 | IS94: 1
BF95: 1 | BG95: 1 | BH95: 1 | BI95: 1 | BJ95: 1 | BK95: 1 | BL95: 1 | BM95: 1 | BN95: 1 | BO95: 1 | BP95: 1 | GC95: 1 | HO95: 1 | HP95: 1 | HQ95: 1 | HR95: 1 | IS95: 1
BF96: 1 | BG96: 1 | BH96: 1 | BI96: 1 | BJ96: 1 | BK96: 1 | BL96: 1 | BM96: 1 | BN96: 1 | BO96: 1 | BP96: 1 | BQ96: 1 | GC96: 1 | HR96: 1 | HS96: 1 | HT96: 1 | HU96: 1 | IS96: 1
BQ97: 1 | GC97: 1 | HU97: 1 | HV97: 1 | HW97: 1 | HX97: 1 | IS97: 1
BQ98: 1 | FY98: 1 | GC98: 1 | HX98: 1 | HY98: 1 | HZ98: 1 | IS98: 1
BQ99: 1 | FY99: 1 | GC99: 1 | HZ99: 1 | IA99: 1 | IB99: 1 | IS99: 1
BQ100: 1 | FY100: 1 | GC100: 1 | IB100: 1 | IC100: 1 | ID100: 1 | IS100: 1
BQ101: 1 | BR101: 1 | BS101: 1 | BT101: 1 | BU101: 1 | BV101: 1 | BW101: 1 | BX101: 1 | BY101: 1 | BZ101: 1 | CA101: 1 | FY101: 1 | GC101: 1 | ID101: 1 | IE101: 1 | IF101: 1 | IS101: 1
BQ102: 1 | BR102: 1 | BS102: 1 | BT102: 1 | BU102: 1 | BV102: 1 | BW102: 1 | BX102: 1 | BY102: 1 | BZ102: 1 | CA102: 1 | FY102: 1 | GC102: 1 | IF102: 1 | IG102: 1 | IH102: 1 | IS102: 1
FY103: 1 | GC103: 1 | IH103: 1 | II103: 1 | IJ103: 1 | IS103: 1
FY104: 1 | GC104: 1 | IJ104: 1 | IK104: 1 | IL104: 1 | IS104: 1
BC105: 1 | FY105: 1 | GC105: 1 | IL105: 1 | IM105: 1 | IS105: 1
BC106: 1 | FY106: 1 | GC106: 1 | IM106: 1 | IN106: 1 | IS106: 1
BC107: 1 | FY107: 1 | GC107: 1 | IN107: 1 | IO107: 1 | IS107: 1
BC108: 1 | BG108: 1 | FY108: 1 | GC108: 1 | IO108: 1 | IP108: 1
BC109: 1 | BG109: 1 | FY109: 1 | GC109: 1 | IP109: 1 | IQ109: 1
BC110: 1 | BG110: 1 | FY110: 1 | GC110: 1 | IQ110: 1
BC111: 1 | BG111: 1 | FY111: 1 | GC111: 1 | IQ111: 1 | IR111: 1
BC112: 1 | FY112: 1 | GC112: 1 | IR112: 1
BC113: 1 | FY113: 1 | GC113: 1 | IR113: 1 | IS113: 1
R114: 1 | S114: 1 | T114: 1 | U114: 1 | V114: 1 | W114: 1 | X114: 1 | Y114: 1 | BC114: 1 | BD114: 1 | BE114: 1 | BF114: 1 | BG114: 1 | FY114: 1 | GC114: 1 | IS114: 1
R115: 1 | FY115: 1 | GC115: 1 | IS115: 1
R116: 1 | FY116: 1 | GC116: 1 | IS116: 1
P117: 1 | Q117: 1 | R117: 1 | S117: 1 | T117: 1 | U117: 1 | V117: 1 | W117: 1 | X117: 1 | Y117: 1 | Z117: 1 | AA117: 1 | AB117: 1 | AC117: 1 | AD117: 1 | AE117: 1 | AF117: 1 | AG117: 1 | AH117: 1 | AI117: 1 | AJ117: 1 | AK117: 1 | AL117: 1 | AM117: 1 | AN117: 1 | AO117: 1 | AP117: 1 | AQ117: 1 | AR117: 1 | AS117: 1 | AT117: 1 | AU117: 1 | AV117: 1 | AW117: 1 | AX117: 1 | AY117: 1 | AZ117: 1 | BA117: 1 | BB117: 1 | BC117: 1 | BD117: 1 | BE117: 1 | BF117: 1 | BG117: 1 | BH117: 1 | BI117: 1 | BJ117: 1 | BK117: 1 | BL117: 1 | BM117: 1 | BN117: 1 | BO117: 1 | BP117: 1 | BQ117: 1 | BR117: 1 | BS117: 1 | BT117: 1 | BU117: 1 | BV117: 1 | BW117: 1 | BX117: 1 | BY117: 1 | BZ117: 1 | CA117: 1 | CB117: 1 | CC117: 1 | CD117: 1 | CE117: 1 | CF117: 1 | CG117: 1 | CH117: 1 | CI117: 1 | CJ117: 1 | CK117: 1 | CL117: 1 | CM117: 1 | CN117: 1 | CO117: 1 | CP117: 1 | CQ117: 1 | CR117: 1 | CS117: 1 | CT117: 1 | CU117: 1 | CV117: 1 | CW117: 1 | CX117: 1 | CY117: 1 | CZ117: 1 | DA117: 1 | DB117: 1 | DC117: 1 | DD117: 1 | DE117: 1 | DF117: 1 | DG117: 1 | DH117: 1 | DI117: 1 | DJ117: 1 | DK117: 1 | DL117: 1 | DM117: 1 | DN117: 1 | DO117: 1 | DP117: 1 | DQ117: 1 | DR117: 1 | DS117: 1 | DT117: 1 | DU117: 1 | DV117: 1 | DW117: 1 | DX117: 1 | DY117: 1 | DZ117: 1 | EA117: 1 | EB117: 1 | EC117: 1 | ED117: 1 | EE117: 1 | EF117: 1 | EG117: 1 | EH117: 1 | EI117: 1 | EJ117: 1 | EK117: 1 | EL117: 1 | EM117: 1 | EN117: 1 | EO117: 1 | EP117: 1 | EQ117: 1 | ER117: 1 | ES117: 1 | ET117: 1 | EU117: 1 | EV117: 1 | EW117: 1 | EX117: 1 | EY117: 1 | EZ117: 1 | FA117: 1 | FB117: 1 | FC117: 1 | FD117: 1 | FE117: 1 | FF117: 1 | FG117: 1 | FH117: 1 | FI117: 1 | FJ117: 1 | FK117: 1 | FL117: 1 | FM117: 1 | FN117: 1 | FO117: 1 | FP117: 1 | FQ117: 1 | FR117: 1 | FS117: 1 | FT117: 1 | FU117: 1 | FV117: 1 | FW117: 1 | FX117: 1 | FY117: 1 | FZ117: 1 | GA117: 1 | GB117: 1 | GC117: 1 | GD117: 1 | GE117: 1 | GF117: 1 | GG117: 1 | GH117: 1 | GI117: 1 | GJ117: 1 | GK117: 1 | GL117: 1 | GM117: 1 | GN117: 1 | GO117: 1 | GP117: 1 | GQ117: 1 | GR117: 1 | GS117: 1 | GT117: 1 | GU117: 1 | GV117: 1 | GW117: 1 | GX117: 1 | GY117: 1 | GZ117: 1 | HA117: 1 | HB117: 1 | HC117: 1 | HD117: 1 | HE117: 1 | HF117: 1 | HG117: 1 | HH117: 1 | HI117: 1 | HJ117: 1 | HK117: 1 | HL117: 1 | HM117: 1 | HN117: 1 | HO117: 1 | HP117: 1 | HQ117: 1 | HR117: 1 | HS117: 1 | HT117: 1 | HU117: 1 | HV117: 1 | HW117: 1 | HX117: 1 | HY117: 1 | HZ117: 1 | IA117: 1 | IB117: 1 | IC117: 1 | ID117: 1 | IE117: 1 | IF117: 1 | IG117: 1 | IH117: 1 | II117: 1 | IJ117: 1 | IK117: 1 | IL117: 1 | IM117: 1 | IN117: 1 | IO117: 1 | IP117: 1 | IQ117: 1 | IR117: 1 | IS117: 1 | IT117: 1 | IU117: 1
CB118: 1 | ED118: 1 | EV118: 1 | FY118: 1 | IS118: 1
CB119: 1 | ED119: 1 | EV119: 1 | FY119: 1 | IS119: 1
CB120: 1 | ED120: 1 | EV120: 1 | FY120: 1 | IS120: 1
CB121: 1 | ED121: 1 | EV121: 1 | FY121: 1 | IS121: 1
CB122: 1 | ED122: 1 | EV122: 1 | FY122: 1 | IS122: 1
CB123: 1 | ED123: 1 | EV123: 1 | FY123: 1 | IS123: 1
CB124: 1 | ED124: 1 | EV124: 1 | FY124: 1 | IS124: 1
CB125: 1 | ED125: 1 | EV125: 1 | FY125: 1 | IS125: 1
... 108 more rows

Sheet Class
G2: 0.6322582418
H3: CV | I3: SV
A4: 1 | B4: Dreadnought, Battlestar, Mothership | F4: T5 | G4: 239 | H4: =ROUND(G4,0) -> 239 | K4: 332.8 | M4: =H4*2 -> 478
A5: 2 | B5: Cruiser | F5: T4 | G5: =G4*$G$2 -> 151.1097198 | H5: 152
A6: 3 | B6: Destroyer | F6: T3 | G6: 95.54036574 | H6: =ROUND(G6,0) -> 96 | K6: 114.73
A7: 4 | B7: Frigate | D7: Dukide | E7: 49 | F7: T2 | G7: 60.40618366 | H7: 60 | I7: 225
A8: 5 | B8: Corvette | F8: T1 | G8: 38.19230747 | H8: 38 | I8: =H8*4 -> 152
A9: 6 | B9: Transport/Cargo | G9: 24.14740117 | H9: 24 | I9: =H9*4 -> 96
A10: 7 | B10: Drop Ship | G10: 15.26739341 | H10: 15 | I10: 60
A11: 8 | B11: Interceptor/Bomber | G11: 9.652935312 | H11: 10 | I11: 40
A12: 9 | B12: Fighter/Scout | D12: Kiowa | E12: 21 | G12: 6.103147908 | H12: 6 | I12: 24
A13: 10 | B13: Scout/Skiff | G13: 3.858765566 | H13: 4 | I13: 16
B16: Expeditionary Frigate | E16: 49
B17: Kiowa | E17: 21
B18: Starbolt | E18: 17
J22: 112
J23: 112
J24: 1
E40: W | F40: H | G40: D
C41: Blocks | D41: SV | E41: 97 | F41: 37 | G41: 239 | I41: 40
C42: =IF(C41="Blocks","Meters","Blocks") -> Meters | D42: =D41 -> SV | E42: =IF($C42="Blocks",E41*1/2,E41*2) -> 194 | F42: =IF($C42="Blocks",F41*1/2,F41*2) -> 74 | G42: =IF($C42="Blocks",G41*1/2,G41*2) -> 478
C44: =C41 -> Blocks | D44: =IF(D41="SV","CV","SV") -> CV | E44: =IF($D44="CV",E41/4,E41*4) -> 24.25 | F44: =IF($D44="CV",F41/4,F41*4) -> 9.25 | G44: =IF($D44="CV",G41/4,G41*4) -> 59.75
C45: =C42 -> Meters | D45: =D44 -> CV | E45: =IF($C45="Blocks",E44*1/2,E44*2) -> 48.5 | F45: =IF($C45="Blocks",F44*1/2,F44*2) -> 18.5 | G45: 119.5

Sheet Storage
C6: 320k Containers
C7: 1 | D7: 1 Ore Processing (ore constructor input)
C8: 12 | D8: 12 Ingot Storage (1 per major type, ore constructor output)
C9: 1 | D9: 1 Ammo Production (ammo constructor input)
C10: 6 | D10: 6 Ammo Controllers (ammo constructor output)
C11: 0 | D11: Zero Ore Controllers (mining CV will dock)
C12: 1 | D12: 1 Production (multi-use constructor input)
C13: 1 | D13: 1 Finished Goods (multi-use constructor output)
C14: 1 | D14: 1 Construction (iffy: building blocks and mats)
C15: =SUM(C7:C14) -> 23
C17: Constructors
C18: 1 | D18: Production
C19: 1 | D19: Ore Processing
C20: 1 | D20: Fuel Processing
C21: 1 | D21: Air Processing
C22: 8 | D22: Ammo Processing
C23: 0 | D23: Open
C24: 0
C25: 0
C26: 0
C27: =SUM(C18:C26) -> 12
K32: Quantum Extender Layout
E33: 36
E34: 2 | F34: ore | K34: 1 | L34: 2 | M34: 3 | N34: 4 | O34: 5 | P34: 6 | Q34: 7 | R34: 8 | S34: 9
E35: 6 | F35: ammo | J35: 1
E36: =E33-E34-E35 -> 28 | F36: cargo | J36: 2 | L36: 3 | M36: 3 | N36: 3 | O36: 2 | P36: 3 | Q36: 3 | R36: 3
J37: 3 | L37: 3 | M37: 3 | N37: 3 | O37: 2 | P37: 3 | Q37: 3 | R37: 3
J38: 4 | L38: 3 | M38: 3 | N38: 3 | O38: 2 | P38: 3 | Q38: 3 | R38: 3
J39: 5 | L39: 3 | M39: 3 | N39: 3 | O39: 2 | P39: 3 | Q39: 3 | R39: 3
J40: 6 | L40: 3 | M40: 3 | N40: 3 | O40: 2 | P40: 3 | Q40: 3 | R40: 3
E41: 8 | J41: 7 | U41: =SUM(K35:S41) -> 100
E42: 6
E43: 48
E44: 6
E45: 8
E46: 4
E47: =SUM(E41:E46) -> 80

Sheet LCD
B2: all commands have to be lower case
B5: <align=center>
B6: <align=right>
B7: <size=150>
B8: <color=#hexdec>
B9: <rotate=-64.5>
B10: <line-height=100>
B11: <pos=5>

Sheet RE
H7: Power Off
K8: 1200000
H10: Each Quantum Extender is worth 200K
H11: Install 100 of them
H13: 100 | I13: 200 | K13: =H13*I13 -> 20000
H16: Each
K20: 3200000
K23: 16558071
K24: 16228071
K25: =K23-K24 -> 330000
H28: Vanilla you can spawn this with block limits on, you will just need to install one unlimited CPU core
H29: You are forced to disable block limits in RE as there is no unlimited CPU option that would otherwise allow this craft to spawn given the CPU requirements
H32: Shield Chargers | K32: 1x1x2
H36: Engineering Shield Capacitor Array installation areas | N36: 5x5 engineering build areas
H38: I consider the various shield chargers a function of power diversion and management, so I put them in the engine room along with the Generators
H41: 2 chargers to 1 capacitor
H43: Engineering shield charger/capacitor upgrade area on 2nd floor
H44: The max is 8 5x5x4 build areas

Sheet Weapons
B2: Max | C2: Installed
C3: 0 | E3: Turret | F3: Laser | G3: Pulse Laser
C4: 10 | E4: Turret | F4: Laser | G4: Plasma Turret
C5: 4 | E5: Turret | F5: Projectile | G5: Cannon
C6: 8 | E6: Turret | F6: Projectile | G6: Minigun
C7: 10 | E7: Turret | F7: Rocket | G7: Rocket Turret
C8: 0 | E8: Turret | F8: Rocket | G8: Flak Turret
C9: 2 | E9: Turret | F9: Artillary | G9: Artillary Turret
C10: 8 | E10: Turret | F10: Sentry | G10: Sentry Gun
C11: 6 | E11: Weapon | F11: Laser | G11: Pulse Laser
C12: 4 | E12: Weapon | F12: Launcher | G12: Rocket Launcher
C13: 5 | E13: Harvest | F13: Laser | G13: Drill
B14: 4 | C14: 1 | E14: Harvest | F14: Tool | G14: Multi Turret
B15: 4 | C15: 1 | E15: Harvest | F15: Tool | G15: Drill Turret
B17: 10 | C17: =SUMPRODUCT(--(E17=$E$3:$E$15), --(F17=$F$3:$F$15), $C$3:$C$15) -> 10 | D17: =B17-C17 -> 0 | E17: Turret | F17: Laser
B18: 12 | C18: =SUMPRODUCT(--(E18=$E$3:$E$15), --(F18=$F$3:$F$15), $C$3:$C$15) -> 12 | D18: =B18-C18 -> 0 | E18: Turret | F18: Projectile
B19: 10 | C19: =SUMPRODUCT(--(E19=$E$3:$E$15), --(F19=$F$3:$F$15), $C$3:$C$15) -> 10 | D19: 0 | E19: Turret | F19: Rocket
B20: 2 | C20: =SUMPRODUCT(--(E20=$E$3:$E$15), --(F20=$F$3:$F$15), $C$3:$C$15) -> 2 | D20: 0 | E20: Turret | F20: Artillary
B21: 8 | C21: =SUMPRODUCT(--(E21=$E$3:$E$15), --(F21=$F$3:$F$15), $C$3:$C$15) -> 8 | D21: 0 | E21: Turret | F21: Sentry
B22: =SUM(B17:B21) -> 42 | C22: =SUM(C17:C21) -> 42
B24: 4 | C24: =SUMPRODUCT(--(E24=$E$3:$E$15), --(F24=$F$3:$F$15), $C$3:$C$15) -> 4 | D24: 0 | E24: Weapon | F24: Launcher | G24: Rocket Launcher
B25: 6 | C25: =SUMPRODUCT(--(E25=$E$3:$E$15), --(F25=$F$3:$F$15), $C$3:$C$15) -> 6 | D25: 0 | E25: Weapon | F25: Laser | G25: Pulse Laser
B26: =SUM(B24:B25) -> 10 | C26: =SUM(C24:C25) -> 10
B28: 8 | C28: =SUMPRODUCT(--(E28=$E$3:$E$15), --(F28=$F$3:$F$15), $C$3:$C$15) -> 2 | D28: =B28-C28 -> 6 | E28: Harvest | F28: Tool | G28: Multi-Tool
B29: 6 | C29: 5 | D29: 1 | E29: Harvest | F29: Laser | G29: Drill
B30: =SUM(B28:B29) -> 14 | C30: =SUM(C28:C29) -> 7

Sheet Map
E17: -48
E36: 0
E55: 48
F56: -112 | AB56: 126
E58: 144
E59: =E65-E58 -> -18
E65: 126
E71: =E65-E72 -> 18
E72: 108
S74: Side -1 | W74: Side +2
M75: Side -1 | S75: 4 | W75: 8
M76: =VBA_Minus1 -> 37
R77: Side +2 | T77: Side -2 | V77: Side +1 | X77: Side -1
L78: Side +2 | N78: Side -2 | R78: 8 | T78: 2 | V78: 4 | X78: 6
L79: =VBA_Plus2 -> 37 | N79: =VBA_Minus2 -> 37
F80: Blocks | G80: Meters | S80: Side +1 | W80: Side -2
E81: Craft Length | F81: 239 | L81: xAdj | M81: Side +1 | N81: yAdj | O81: zAdj | S81: 6 | W81: 2
E82: Craft Width | F82: 97 | L82: =(N79-L79)/2 -> 0 | M82: =VBA_Plus1 -> 37 | N82: =(M82-M76)/2 -> 0 | O82: =VBA_Front/2 -> 37.5
E83: Craft Height | F83: 37 | S83: -1 | T83: -1 | U83: -1 | W83: =OFFSET(W88,$F86,0) -> 119
S84: Top | T84: Top | U84: Side | W84: 37 | X84: -7
F85: Active | G85: on/off | H85: Area Name | J85: Front | K85: Side 1+ | L85: Side 1- | M85: Side 2+ | N85: Side 2- | O85: Pattern | Q85: Text | S85: Height | T85: Width | U85: Height | V85: Y | W85: Z | X85: X
F86: 9 | G86: =OFFSET(G88,$F86,0) -> 0 | H86: =OFFSET(H88,$F86,0) -> Grav 1 | J86: =OFFSET(J88,$F86,0) -> 75 | K86: 37 | L86: 37 | M86: 37 | N86: 37 | O86: Pattern Grav | Q86: =OFFSET(Q88,$F86,0) -> 1 | S86: =OFFSET(S88,$F86,0) -> 73 | T86: =OFFSET(T88,$F86,0) -> 73 | U86: =OFFSET(U88,$F86,0) -> 74 | V86: =OFFSET(V88,$F86,0) -> -11 | W86: =W83+(VBA_Pattern="Pattern Grav")*W84 -> 156 | X86: =OFFSET(X88,$F86,0)+X84 -> 106
F88: n | G88: on/off | H88: Area Name | J88: Front | K88: Side 1+ | L88: Side 1- | M88: Side 2+ | N88: Side 2- | O88: Pattern | Q88: Text | S88: Height | T88: Width | U88: Side | V88: Y | W88: Z | X88: X
F89: =ROW(F89)-ROW(F$88) -> 1 | G89: 0 | H89: Centerline | J89: 1 | K89: 1 | L89: 1 | M89: 112 | N89: 126 | O89: Pattern Red | Q89: + | S89: =K89+L89+S$83 -> 1 | T89: =M89+N89+T$83 -> 237 | U89: =J89+U$83 -> 0 | V89: 0 | W89: 126 | X89: 0
F90: 2 | G90: 0 | H90: Vertical | J90: 36 | K90: 48 | L90: 48 | M90: 1 | N90: 1 | O90: Pattern Red | Q90: + | S90: =K90+L90+S$83 -> 95 | T90: =M90+N90+T$83 -> 1 | U90: =J90+U$83 -> 35 | V90: 0 | W90: 144 | X90: 0
F91: 3 | G91: 0 | H91: Locator | J91: 2 | K91: 2 | L91: 2 | M91: 2 | N91: 2 | O91: Pattern Red | Q91: X | S91: 3 | T91: 3 | U91: 1 | V91: -22 | W91: 123 | X91: -101
F92: 4 | G92: 0 | H92: Locator | J92: 2 | K92: 2 | L92: 2 | M92: 2 | N92: 2 | O92: Pattern Red | Q92: X | S92: 3 | T92: 3 | U92: 1 | V92: 0 | W92: 0 | X92: 0
F93: 5 | G93: 0 | H93: Locator | J93: 2 | K93: 2 | L93: 2 | M93: 2 | N93: 2 | O93: Pattern Red | Q93: X | S93: 3 | T93: 3 | U93: 1 | V93: 0 | W93: 0 | X93: 0
F94: 6 | G94: 0 | H94: Locator | J94: 2 | K94: 2 | L94: 2 | M94: 2 | N94: 2 | O94: Pattern Red | Q94: X | S94: 3 | T94: 3 | U94: 1 | V94: 0 | W94: 0 | X94: 0
E97: 1 | F97: =ROW(F97)-ROW(F$88) -> 9 | G97: 0 | H97: Grav 1 | J97: 75 | K97: 37 | L97: 37 | M97: 37 | N97: 37 | O97: Pattern Grav | Q97: 1 | S97: =K97+L97+S$83 -> 73 | T97: =M97+N97+T$83 -> 73 | U97: =J97+U$83 -> 74 | V97: -11 | W97: 119 | X97: 113 | Z97: 0 | AA97: 0 | AB97: 1
E98: 1 | F98: =ROW(F98)-ROW(F$88) -> 10 | G98: 0 | H98: Observation Prox | J98: 16 | K98: 16 | L98: 14 | M98: 16 | N98: 16 | O98: Pattern Blue | Q98: =H98 -> Observation Prox | S98: 29 | T98: 31 | U98: 15 | V98: -1 | W98: 128 | X98: 108 | Z98: 1 | AA98: 0 | AB98: 0
E99: 1 | F99: =ROW(F99)-ROW(F$88) -> 11 | G99: 0 | H99: Fab Port Prox | J99: 16 | K99: 16 | L99: 16 | M99: 16 | N99: 16 | O99: Pattern Blue | Q99: =H99 -> Fab Port Prox | S99: 31 | T99: 31 | U99: 15 | V99: -13 | W99: 127 | X99: 95 | Z99: 1 | AA99: 0 | AB99: 0
G100: 0 | Z100: 0 | AA100: 0 | AB100: 0
E101: 2 | F101: =ROW(F101)-ROW(F$88) -> 13 | G101: 0 | H101: Grav 2 | J101: =37+1+37 -> 75 | K101: 37 | L101: 37 | M101: 37 | N101: 37 | O101: Pattern Grav | Q101: 2 | S101: =K101+L101+S$83 -> 73 | T101: =M101+N101+T$83 -> 73 | U101: =J101+U$83 -> 74 | V101: 12 | W101: 119 | X101: 113 | Z101: 0 | AA101: 0 | AB101: 1
E102: 2 | F102: =ROW(F102)-ROW(F$88) -> 14 | G102: 0 | H102: Fab Port Star | J102: 16 | K102: 16 | L102: 16 | M102: 16 | N102: 16 | O102: Pattern Blue | Q102: =H102 -> Fab Port Star | S102: 31 | T102: 31 | U102: 15 | V102: 13 | W102: 127 | X102: 95 | Z102: 1 | AA102: 0 | AB102: 0
G103: 0 | Z103: 0 | AA103: 0 | AB103: 0
E104: 3 | F104: =ROW(F104)-ROW(F$88) -> 16 | G104: 0 | H104: Grav 3 | J104: 75 | K104: 37 | L104: 37 | M104: 37 | N104: 37 | O104: Pattern Grav | Q104: 3 | S104: =K104+L104+S$83 -> 73 | T104: =M104+N104+T$83 -> 73 | U104: =J104+U$83 -> 74 | V104: -25 | W104: 119 | X104: 65 | Z104: 0 | AA104: 0 | AB104: 1
E105: 3 | F105: =ROW(F105)-ROW(F$88) -> 17 | G105: 0 | H105: Central Hangar C | J105: 16 | K105: 16 | L105: 16 | M105: 16 | N105: 16 | O105: Pattern Blue | Q105: =H105 -> Central Hangar C | S105: 31 | T105: 31 | U105: 15 | V105: -14 | W105: 129 | X105: 68 | Z105: 1 | AA105: 0 | AB105: 0
E106: 3 | F106: =ROW(F106)-ROW(F$88) -> 18 | G106: 0 | H106: Port Cold Prox | J106: 9 | K106: 16 | L106: 8 | M106: 16 | N106: 16 | O106: Pattern Yellow | Q106: =H106 -> Port Cold Prox | S106: 23 | T106: 31 | U106: 8 | V106: -19 | W106: 121 | X106: 72 | Z106: 1 | AA106: 0 | AB106: 0
G107: 0 | Z107: 0 | AA107: 0 | AB107: 0
E108: 4 | F108: =ROW(F108)-ROW(F$88) -> 20 | G108: 0 | H108: Grav 4 | J108: 75 | K108: 37 | L108: 37 | M108: 37 | N108: 37 | O108: Pattern Grav | Q108: 4 | S108: =K108+L108+S$83 -> 73 | T108: =M108+N108+T$83 -> 73 | U108: =J108+U$83 -> 74 | V108: 26 | W108: 119 | X108: 65 | Z108: 0 | AA108: 0 | AB108: 1
E109: 4 | F109: =ROW(F109)-ROW(F$88) -> 21 | G109: 0 | H109: Central Hangar D | J109: 16 | K109: 16 | L109: 16 | M109: 16 | N109: 16 | O109: Pattern Blue | Q109: =H109 -> Central Hangar D | S109: 31 | T109: 31 | U109: 15 | V109: 14 | W109: 129 | X109: 68 | Z109: 1 | AA109: 0 | AB109: 0
E110: 4 | F110: =ROW(F110)-ROW(F$88) -> 22 | G110: 0 | H110: Star Cold Prox | J110: 9 | K110: 8 | L110: 16 | M110: 16 | N110: 16 | O110: Pattern Yellow | Q110: =H110 -> Star Cold Prox | S110: 23 | T110: 31 | U110: 8 | V110: 19 | W110: 121 | X110: 72 | Z110: 1 | AA110: 0 | AB110: 0
G111: 0 | Z111: 0 | AA111: 0 | AB111: 0
E112: 5 | F112: =ROW(F112)-ROW(F$88) -> 24 | G112: 1 | H112: Grav 5 | J112: 75 | K112: 37 | L112: 37 | M112: 37 | N112: 37 | O112: Pattern Grav | Q112: 5 | S112: =K112+L112+S$83 -> 73 | T112: =M112+N112+T$83 -> 73 | U112: =J112+U$83 -> 74 | V112: -27 | W112: 115 | X112: 37 | Z112: 0 | AA112: 0 | AB112: 1
E113: 5 | F113: =ROW(F113)-ROW(F$88) -> 25 | G113: 0 | H113: Central Hangar B | J113: 16 | K113: 16 | L113: 16 | M113: 16 | N113: 16 | O113: Pattern Blue | Q113: =H113 -> Central Hangar B | S113: 31 | T113: 31 | U113: 15 | V113: -12 | W113: 130 | X113: 42 | Z113: 1 | AA113: 0 | AB113: 0
E114: 5 | F114: =ROW(F114)-ROW(F$88) -> 26 | G114: 1 | H114: Hangar Port 1 Prox | J114: 6 | K114: 9 | L114: 12 | M114: 16 | N114: 15 | O114: Pattern Yellow | Q114: =H114 -> Hangar Port 1 Prox | S114: 20 | T114: 30 | U114: 5 | V114: -35 | W114: 118 | X114: 32 | Z114: 1 | AA114: 0 | AB114: 0
E115: 5 | F115: =ROW(F115)-ROW(F$88) -> 27 | G115: 0 | H115: Archive Port Prox | J115: 16 | K115: 16 | L115: 16 | M115: 16 | N115: 16 | O115: Pattern Blue | Q115: =H115 -> Archive Port Prox | S115: 31 | T115: 31 | U115: 15 | V115: -14 | W115: 130 | X115: 21 | Z115: 1 | AA115: 0 | AB115: 0
E116: 5 | F116: =ROW(F116)-ROW(F$88) -> 28 | G116: 1 | H116: Hangar Port 5 Prox | J116: 6 | K116: 9 | L116: 12 | M116: 16 | N116: 15 | O116: Pattern Yellow | Q116: =H116 -> Hangar Port 5 Prox | S116: =K116+L116+S$83 -> 20 | T116: =M116+N116+T$83 -> 30 | U116: =J116+U$83 -> 5 | V116: -35 | W116: 118 | X116: 16 | Z116: 1
G120: 0 | S120: -1 | T120: -1 | U120: -1 | Z120: 0 | AA120: 0 | AB120: 0
E121: 6 | F121: =ROW(F121)-ROW(F$88) -> 33 | G121: 0 | H121: Grav 6 | J121: 75 | K121: 37 | L121: 37 | M121: 37 | N121: 37 | O121: Pattern Grav | Q121: 6 | S121: 73 | T121: 73 | U121: 74 | V121: 28 | W121: 115 | X121: 37 | Z121: 0 | AA121: 0 | AB121: 1
E122: 6 | F122: =ROW(F122)-ROW(F$88) -> 34 | G122: 0 | H122: Central Hangar E | J122: 16 | K122: 16 | L122: 16 | M122: 16 | N122: 16 | O122: Pattern Blue | Q122: =H122 -> Central Hangar E | S122: 31 | T122: 31 | U122: 15 | V122: 12 | W122: 130 | X122: 42 | Z122: 1 | AA122: 0 | AB122: 0
E123: 6 | F123: =ROW(F123)-ROW(F$88) -> 35 | G123: 1 | H123: Hangar Star 1 Prox | J123: 6 | K123: 12 | L123: 9 | M123: 16 | N123: 15 | O123: Pattern Yellow | Q123: =H123 -> Hangar Star 1 Prox | S123: 20 | T123: 30 | U123: 5 | V123: 35 | W123: 118 | X123: 32 | Z123: 1 | AA123: 0 | AB123: 0
E124: 6 | F124: =ROW(F124)-ROW(F$88) -> 36 | G124: 0 | H124: Archive Star Prox | J124: 16 | K124: 16 | L124: 16 | M124: 16 | N124: 16 | O124: Pattern Blue | Q124: =H124 -> Archive Star Prox | S124: 31 | T124: 31 | U124: 15 | V124: 14 | W124: 130 | X124: 21 | Z124: 1 | AA124: 0 | AB124: 0
E125: 6 | F125: =ROW(F125)-ROW(F$88) -> 37 | G125: 1 | H125: Hangar Star 5 Prox | J125: 6 | K125: 12 | L125: 9 | M125: 16 | N125: 15 | O125: Pattern Yellow | Q125: =H125 -> Hangar Star 5 Prox | S125: 20 | T125: 30 | U125: 5 | V125: 35 | W125: 118 | X125: 16
G126: 0 | Z126: 0 | AA126: 0 | AB126: 0
E127: 7 | F127: =ROW(F127)-ROW(F$88) -> 39 | G127: 0 | H127: Grav 7 | J127: 75 | K127: 37 | L127: 37 | M127: 37 | N127: 37 | O127: Pattern Grav | Q127: 7 | S127: =K127+L127+S$83 -> 73 | T127: =M127+N127+T$83 -> 73 | U127: =J127+U$83 -> 74 | V127: -32 | W127: 122 | X127: -3 | Z127: 0 | AA127: 0 | AB127: 1
E128: 7 | F128: =ROW(F128)-ROW(F$88) -> 40 | G128: 0 | H128: Medical Port Prox | J128: 16 | K128: 16 | L128: 16 | M128: 16 | N128: 16 | O128: Pattern Blue | Q128: =H128 -> Medical Port Prox | S128: 31 | T128: 31 | U128: 15 | V128: -13 | W128: 130 | X128: -8 | Z128: 1 | AA128: 0 | AB128: 0
E129: 7 | F129: =ROW(F129)-ROW(F$88) -> 41 | G129: 0 | H129: Archive Port Prox | J129: 16 | K129: 16 | L129: 16 | M129: 16 | N129: 16 | O129: Pattern Blue | Q129: =H129 -> Archive Port Prox | S129: 31 | T129: 31 | U129: 15 | V129: -14 | W129: 130 | X129: 21 | Z129: 0 | AA129: 0 | AB129: 0
E130: 7 | F130: =ROW(F130)-ROW(F$88) -> 42 | G130: 0 | H130: Central Fuel Stor | J130: 2 | K130: 10 | L130: 10 | M130: 10 | N130: 13 | O130: Pattern Yellow | Q130: =H130 -> Central Fuel Stor | S130: 19 | T130: 22 | U130: 1 | V130: 0 | W130: 114 | X130: -10 | Z130: 1 | AA130: 0 | AB130: 0
G131: 0 | H131: Hangar Mid P | Z131: 0 | AA131: 0 | AB131: 0
E132: 7 | F132: =ROW(F132)-ROW(F$88) -> 44 | G132: 1 | H132: Hangar Port 2 Prox | J132: 6 | K132: 9 | L132: 12 | M132: 16 | N132: 16 | O132: Pattern Yellow | Q132: =H132 -> Hangar Port 2 Prox | S132: =K132+L132+S$83 -> 20 | T132: =M132+N132+T$83 -> 31 | U132: =J132+U$83 -> 5 | V132: -35 | W132: 118 | X132: 1 | Z132: 1 | AA132: 0 | AB132: 0
E133: 7 | F133: =ROW(F133)-ROW(F$88) -> 45 | G133: 1 | H133: Hangar Port 3 Prox | J133: 6 | K133: 9 | L133: 12 | M133: 16 | N133: 16 | O133: Pattern Yellow | Q133: =H133 -> Hangar Port 3 Prox | S133: 20 | T133: 31 | U133: 5 | V133: -35 | W133: 118 | X133: -27 | Z133: 1 | AA133: 0 | AB133: 0
E134: 7 | F134: =ROW(F134)-ROW(F$88) -> 46 | G134: 0 | H134: Grav 7 Service | J134: 11 | K134: 9 | L134: 3 | M134: 3 | N134: 3 | O134: Pattern Yellow | Q134: =H134 -> Grav 7 Service | S134: 11 | T134: 5 | U134: 10 | V134: -31 | W134: 123 | X134: -4 | Z134: 1 | AA134: 0 | AB134: 0
G135: 0 | Z135: 0 | AA135: 0 | AB135: 0
E136: 8 | F136: =ROW(F136)-ROW(F$88) -> 48 | G136: 0 | H136: Grav 8 | J136: 75 | K136: 37 | L136: 37 | M136: 37 | N136: 37 | O136: Pattern Grav | Q136: 8 | S136: =K136+L136+S$83 -> 73 | T136: =M136+N136+T$83 -> 73 | U136: =J136+U$83 -> 74 | V136: 33 | W136: 122 | X136: -3 | Z136: 0 | AA136: 0 | AB136: 1
E137: 8 | F137: =ROW(F137)-ROW(F$88) -> 49 | G137: 0 | H137: Medical Star Prox | J137: 16 | K137: 16 | L137: 16 | M137: 16 | N137: 16 | O137: Pattern Blue | Q137: =H137 -> Medical Star Prox | S137: 31 | T137: 31 | U137: 15 | V137: 13 | W137: 130 | X137: -8 | Z137: 1 | AA137: 0 | AB137: 0
E138: 8 | F138: =ROW(F138)-ROW(F$88) -> 50 | G138: 0 | H138: Archive Star Prox | J138: 16 | K138: 16 | L138: 16 | M138: 16 | N138: 16 | O138: Pattern Blue | Q138: =H138 -> Archive Star Prox | S138: 31 | T138: 31 | U138: 15 | V138: 14 | W138: 130 | X138: 21 | Z138: 0 | AA138: 0 | AB138: 0
E139: 8 | F139: =ROW(F139)-ROW(F$88) -> 51 | G139: 0 | H139: Central Fuel Stor | J139: 2 | K139: 10 | L139: 10 | M139: 10 | N139: 13 | O139: Pattern Yellow | Q139: =H139 -> Central Fuel Stor | S139: 19 | T139: 22 | U139: 1 | V139: 0 | W139: 114 | X139: -10 | Z139: 0 | AA139: 0 | AB139: 0
G140: 0 | H140: Hangar Mid S | Z140: 0 | AA140: 0 | AB140: 0
E141: 8 | F141: =ROW(F141)-ROW(F$88) -> 53 | G141: 1 | H141: Hangar Star 2 Prox | J141: 6 | K141: 12 | L141: 9 | M141: 16 | N141: 16 | O141: Pattern Yellow | Q141: =H141 -> Hangar Star 2 Prox | S141: =K141+L141+S$83 -> 20 | T141: =M141+N141+T$83 -> 31 | U141: =J141+U$83 -> 5 | V141: 35 | W141: 118 | X141: 1 | Z141: 1 | AA141: 0 | AB141: 0
E142: 8 | F142: =ROW(F142)-ROW(F$88) -> 54 | G142: 1 | H142: Hangar Star 3 Prox | J142: 6 | K142: 12 | L142: 9 | M142: 16 | N142: 16 | O142: Pattern Yellow | Q142: =H142 -> Hangar Star 3 Prox | S142: 20 | T142: 31 | U142: 5 | V142: 35 | W142: 118 | X142: -27 | Z142: 1 | AA142: 0 | AB142: 0
E143: 8 | F143: =ROW(F143)-ROW(F$88) -> 55 | G143: 0 | H143: Grav 8 Service | J143: 11 | K143: 3 | L143: 9 | M143: 3 | N143: 3 | O143: Pattern Yellow | Q143: =H143 -> Grav 8 Service | S143: =K143+L143+S$83 -> 11 | T143: =M143+N143+T$83 -> 5 | U143: =J143+U$83 -> 10 | V143: 31 | W143: 123 | X143: -4 | Z143: 1 | AA143: 0 | AB143: 0
G144: 0 | Z144: 0 | AA144: 0 | AB144: 0
E145: 9 | F145: =ROW(F145)-ROW(F$88) -> 57 | G145: 0 | H145: Grav 9 | J145: 75 | K145: 37 | L145: 37 | M145: 37 | N145: 37 | O145: Pattern Grav | Q145: 9 | S145: =K145+L145+S$83 -> 73 | T145: =M145+N145+T$83 -> 73 | U145: =J145+U$83 -> 74 | V145: -27 | W145: 115 | X145: -54 | Z145: 0 | AA145: 0 | AB145: 1
E146: 9 | F146: =ROW(F146)-ROW(F$88) -> 58 | G146: 0 | H146: Hangar Port 3 Prox | J146: 6 | K146: 9 | L146: 12 | M146: 16 | N146: 16 | O146: Pattern Yellow | Q146: =H146 -> Hangar Port 3 Prox | S146: 20 | T146: 31 | U146: 5 | V146: -35 | W146: 118 | X146: -27 | Z146: 0 | AA146: 0 | AB146: 0
E147: 9 | F147: =ROW(F147)-ROW(F$88) -> 59 | G147: 1 | H147: Hangar Port 4 Prox | J147: 6 | K147: 9 | L147: 12 | M147: 16 | N147: 16 | O147: Pattern Yellow | Q147: =H147 -> Hangar Port 4 Prox | S147: 20 | T147: 31 | U147: 5 | V147: -35 | W147: 118 | X147: -50 | Z147: 1 | AA147: 0 | AB147: 0
E148: 9 | F148: =ROW(F148)-ROW(F$88) -> 60 | G148: 0 | H148: Port Outrider 3 | J148: 16 | K148: 16 | L148: 16 | M148: 16 | N148: 16 | O148: Pattern Blue | Q148: =H148 -> Port Outrider 3 | S148: 31 | T148: 31 | U148: 15 | V148: -13 | W148: 130 | X148: -37 | Z148: 1 | AA148: 0 | AB148: 0
G149: 0 | Z149: 0 | AA149: 0 | AB149: 0
E150: 10 | F150: =ROW(F150)-ROW(F$88) -> 62 | G150: 0 | H150: Grav 10 | J150: 75 | K150: 37 | L150: 37 | M150: 37 | N150: 37 | O150: Pattern Grav | Q150: 10 | S150: =K150+L150+S$83 -> 73 | T150: =M150+N150+T$83 -> 73 | U150: =J150+U$83 -> 74 | V150: 28 | W150: 115 | X150: -54 | Z150: 0 | AA150: 0 | AB150: 1
E151: 10 | F151: =ROW(F151)-ROW(F$88) -> 63 | G151: 0 | H151: Hangar Star 3 Prox | J151: 6 | K151: 12 | L151: 9 | M151: 16 | N151: 16 | O151: Pattern Yellow | Q151: =H151 -> Hangar Star 3 Prox | S151: 20 | T151: 31 | U151: 5 | V151: 35 | W151: 118 | X151: -27 | Z151: 0 | AA151: 0 | AB151: 0
E152: 10 | F152: =ROW(F152)-ROW(F$88) -> 64 | G152: 1 | H152: Hangar Star 4 Prox | J152: 6 | K152: 12 | L152: 9 | M152: 16 | N152: 16 | O152: Pattern Yellow | Q152: =H152 -> Hangar Star 4 Prox | S152: 20 | T152: 31 | U152: 5 | V152: 35 | W152: 118 | X152: -50 | Z152: 1 | AA152: 0 | AB152: 0
E153: 10 | F153: =ROW(F153)-ROW(F$88) -> 65 | G153: 0 | H153: Star Outrider 3 | J153: 16 | K153: 16 | L153: 16 | M153: 16 | N153: 16 | O153: Pattern Blue | Q153: =H153 -> Star Outrider 3 | S153: 31 | T153: 31 | U153: 15 | V153: 13 | W153: 130 | X153: -37 | Z153: 1 | AA153: 0 | AB153: 0
G154: 0 | Z154: 0 | AA154: 0 | AB154: 0
E155: 15 | F155: =ROW(F155)-ROW(F$88) -> 67 | G155: 0 | H155: Grav 15 | J155: 75 | K155: 37 | L155: 37 | M155: 37 | N155: 37 | O155: Pattern Grav | Q155: 15 | S155: =K155+L155+S$83 -> 73 | T155: =M155+N155+T$83 -> 73 | U155: =J155+U$83 -> 74 | V155: -17 | W155: 128 | X155: -41 | Z155: 0 | AA155: 0 | AB155: 1
E156: 15 | F156: =ROW(F156)-ROW(F$88) -> 68 | G156: 0 | H156: Grav Corridor Inc | J156: 16 | K156: 16 | L156: 16 | M156: 16 | N156: 16 | O156: Pattern Green | Q156: =H156 -> Grav Corridor Inc | S156: =K156+L156+S$83 -> 31 | T156: =M156+N156+T$83 -> 31 | U156: =J156+U$83 -> 15 | V156: 0 | W156: 130 | X156: -35 | Z156: 1 | AA156: 0 | AB156: 0
E157: 15 | F157: =ROW(F157)-ROW(F$88) -> 69 | G157: 0 | H157: Breezeway Prox | J157: 16 | K157: 16 | L157: 16 | M157: 16 | N157: 16 | O157: Pattern Blue | Q157: =H157 -> Breezeway Prox | S157: =K157+L157+S$83 -> 31 | T157: =M157+N157+T$83 -> 31 | U157: =J157+U$83 -> 15 | V157: 0 | W157: 132 | X157: -62 | Z157: 1 | AA157: 0 | AB157: 0
E159: 11 | F159: =ROW(F159)-ROW(F$88) -> 71 | G159: 0 | H159: Grav 11 | J159: 75 | K159: 37 | L159: 37 | M159: 37 | N159: 37 | O159: Pattern Grav | Q159: 11 | S159: =K159+L159+S$83 -> 73 | T159: =M159+N159+T$83 -> 73 | U159: =J159+U$83 -> 74 | V159: -19 | W159: 126 | X159: -70 | Z159: 0 | AA159: 0 | AB159: 1
E160: 11 | F160: =ROW(F160)-ROW(F$88) -> 72 | G160: 0 | H160: Engineering Prox 1 | J160: 16 | K160: 16 | L160: 16 | M160: 16 | N160: 16 | O160: Pattern Blue | Q160: =H160 -> Engineering Prox 1 | S160: =K160+L160+S$83 -> 31 | T160: =M160+N160+T$83 -> 31 | U160: =J160+U$83 -> 15 | V160: -10 | W160: 140 | X160: -88 | Z160: 1 | AA160: 0 | AB160: 0
E161: 11 | F161: =ROW(F161)-ROW(F$88) -> 73 | G161: 0 | H161: Engineering Prox 3 | J161: 16 | K161: 16 | L161: 16 | M161: 16 | N161: 16 | O161: Pattern Yellow | Q161: =H161 -> Engineering Prox 3 | S161: =K161+L161+S$83 -> 31 | T161: =M161+N161+T$83 -> 31 | U161: =J161+U$83 -> 15 | V161: -4 | W161: 127 | X161: -88 | Z161: 1 | AA161: 0 | AB161: 0
E162: 11 | F162: =ROW(F162)-ROW(F$88) -> 74 | G162: 0 | H162: Eng Corr Port Prox | J162: 16 | K162: 16 | L162: 16 | M162: 16 | N162: 16 | O162: Pattern Blue | Q162: =H162 -> Eng Corr Port Prox | S162: =K162+L162+S$83 -> 31 | T162: =M162+N162+T$83 -> 31 | U162: =J162+U$83 -> 15 | V162: -11 | W162: 135 | X162: -72 | Z162: 1 | AA162: 0 | AB162: 0
E163: 11 | F163: =ROW(F163)-ROW(F$88) -> 75 | G163: 0 | H163: Brig Prox | J163: 4 | K163: 9 | L163: 9 | M163: 5 | N163: 11 | O163: Pattern Blue | Q163: Brig Prox | S163: =K163+L163+S$83 -> 17 | T163: =M163+N163+T$83 -> 15 | U163: =J163+U$83 -> 3 | V163: 0 | W163: 137 | X163: -75 | Z163: 1 | AA163: 0 | AB163: 0
G164: 0 | Z164: 0 | AA164: 0 | AB164: 0
E165: 12 | F165: =ROW(F165)-ROW(F$88) -> 77 | G165: 0 | H165: Grav 12 | J165: 75 | K165: 37 | L165: 37 | M165: 37 | N165: 37 | O165: Pattern Grav | Q165: 12 | S165: =K165+L165+S$83 -> 73 | T165: =M165+N165+T$83 -> 73 | U165: =J165+U$83 -> 74 | V165: 20 | W165: 126 | X165: -70 | Z165: 0 | AA165: 0 | AB165: 1
E166: 12 | F166: =ROW(F166)-ROW(F$88) -> 78 | G166: 0 | H166: Engineering Prox 2 | J166: 16 | K166: 16 | L166: 16 | M166: 16 | N166: 16 | O166: Pattern Blue | Q166: =H166 -> Engineering Prox 2 | S166: =K166+L166+S$83 -> 31 | T166: =M166+N166+T$83 -> 31 | U166: =J166+U$83 -> 15 | V166: 10 | W166: 140 | X166: -88 | Z166: 1 | AA166: 0 | AB166: 0
E167: 12 | F167: =ROW(F167)-ROW(F$88) -> 79 | G167: 0 | H167: Engineering Prox 4 | J167: 16 | K167: 16 | L167: 16 | M167: 16 | N167: 16 | O167: Pattern Yellow | Q167: =H167 -> Engineering Prox 4 | S167: =K167+L167+S$83 -> 31 | T167: =M167+N167+T$83 -> 31 | U167: =J167+U$83 -> 15 | V167: 4 | W167: 127 | X167: -88 | Z167: 1 | AA167: 0 | AB167: 0
E168: 12 | F168: =ROW(F168)-ROW(F$88) -> 80 | G168: 0 | H168: Eng Corr Star Prox | J168: 16 | K168: 16 | L168: 16 | M168: 16 | N168: 16 | O168: Pattern Blue | Q168: =H168 -> Eng Corr Star Prox | S168: =K168+L168+S$83 -> 31 | T168: =M168+N168+T$83 -> 31 | U168: =J168+U$83 -> 15 | V168: 11 | W168: 135 | X168: -72 | Z168: 1 | AA168: 0 | AB168: 0
E169: 12 | F169: =ROW(F169)-ROW(F$88) -> 81 | G169: 0 | H169: Brig Prox | J169: 4 | K169: 9 | L169: 9 | M169: 5 | N169: 11 | O169: Pattern Blue | Q169: =H169 -> Brig Prox | S169: =K169+L169+S$83 -> 17 | T169: =M169+N169+T$83 -> 15 | U169: =J169+U$83 -> 3 | V169: 0 | W169: 137 | X169: -75 | Z169: 0 | AA169: 0 | AB169: 0
G170: 0
E171: 13 | F171: =ROW(F171)-ROW(F$88) -> 83 | G171: 0 | H171: Grav 13 | J171: 75 | K171: 37 | L171: 37 | M171: 37 | N171: 37 | O171: Pattern Grav | Q171: 13 | S171: =K171+L171+S$83 -> 73 | T171: =M171+N171+T$83 -> 73 | U171: =J171+U$83 -> 74 | V171: -24 | W171: 119 | X171: -100 | Z171: 0 | AA171: 0 | AB171: 1
E172: 13 | F172: =ROW(F172)-ROW(F$88) -> 84 | G172: 0 | H172: Gen Port 1 Prox | J172: 10 | K172: 12 | L172: 15 | M172: 16 | N172: 16 | O172: Pattern Yellow | Q172: =H172 -> Gen Port 1 Prox | S172: =K172+L172+S$83 -> 26 | T172: =M172+N172+T$83 -> 31 | U172: =J172+U$83 -> 9 | V172: -11 | W172: 121 | X172: -79 | Z172: 1 | AA172: 0 | AB172: 0
E173: 13 | F173: =ROW(F173)-ROW(F$88) -> 85 | G173: 0 | H173: Gen Port 2 Prox | J173: 10 | K173: 12 | L173: 15 | M173: 16 | N173: 16 | O173: Pattern Yellow | Q173: =H173 -> Gen Port 2 Prox | S173: 26 | T173: 31 | U173: 9 | V173: -11 | W173: 121 | X173: -96 | Z173: 1 | AA173: 0 | AB173: 0
E174: 13 | F174: =ROW(F174)-ROW(F$88) -> 86 | G174: 0 | H174: Eng Mezzanine Port | J174: 7 | K174: 15 | L174: 5 | M174: 6 | N174: 16 | O174: Pattern Red | Q174: =H174 -> Eng Mezzanine Port | S174: =K174+L174+S$83 -> 19 | T174: =M174+N174+T$83 -> 21 | U174: =J174+U$83 -> 6 | V174: -18 | W174: 129 | X174: -99 | Z174: 1 | AA174: 0 | AB174: 0
E175: 13 | F175: =ROW(F175)-ROW(F$88) -> 87 | G175: 0 | H175: Aft Approach | J175: 6 | K175: 2 | L175: 2 | M175: 10 | N175: 16 | O175: Pattern Yellow | Q175: =H175 -> Aft Approach | S175: =K175+L175+S$83 -> 3 | T175: =M175+N175+T$83 -> 25 | U175: =J175+U$83 -> 5 | V175: 0 | W175: 121 | X175: -103
G176: 0
E177: 14 | F177: =ROW(F177)-ROW(F$88) -> 89 | G177: 0 | H177: Grav 14 | J177: 75 | K177: 37 | L177: 37 | M177: 37 | N177: 37 | O177: Pattern Grav | Q177: 14 | S177: =K177+L177+S$83 -> 73 | T177: =M177+N177+T$83 -> 73 | U177: =J177+U$83 -> 74 | V177: 25 | W177: 119 | X177: -100 | Z177: 0 | AA177: 0 | AB177: 1
E178: 14 | F178: =ROW(F178)-ROW(F$88) -> 90 | G178: 0 | H178: Gen Star 1 Prox | J178: 10 | K178: 15 | L178: 12 | M178: 16 | N178: 16 | O178: Pattern Yellow | Q178: =H178 -> Gen Star 1 Prox | S178: =K178+L178+S$83 -> 26 | T178: =M178+N178+T$83 -> 31 | U178: =J178+U$83 -> 9 | V178: 11 | W178: 121 | X178: -79 | Z178: 1 | AA178: 0 | AB178: 0
E179: 14 | F179: =ROW(F179)-ROW(F$88) -> 91 | G179: 0 | H179: Gen Star 2 Prox | J179: 10 | K179: 15 | L179: 12 | M179: 16 | N179: 16 | O179: Pattern Yellow | Q179: =H179 -> Gen Star 2 Prox | S179: =K179+L179+S$83 -> 26 | T179: =M179+N179+T$83 -> 31 | U179: =J179+U$83 -> 9 | V179: 11 | W179: 121 | X179: -96 | Z179: 1 | AA179: 0 | AB179: 0
E180: 14 | F180: =ROW(F180)-ROW(F$88) -> 92 | G180: 0 | H180: Eng Mezzanine Star | J180: 7 | K180: 5 | L180: 15 | M180: 6 | N180: 16 | O180: Pattern Red | Q180: =H180 -> Eng Mezzanine Star | S180: =K180+L180+S$83 -> 19 | T180: =M180+N180+T$83 -> 21 | U180: =J180+U$83 -> 6 | V180: -18 | W180: 129 | X180: -99 | Z180: 1 | AA180: 0 | AB180: 0
E181: 14 | F181: =ROW(F181)-ROW(F$88) -> 93 | G181: 0 | H181: Detector Prox | J181: 9 | K181: 10 | L181: 2 | M181: 12 | N181: 16 | O181: Pattern Blue | Q181: =H181 -> Detector Prox | S181: =K181+L181+S$83 -> 11 | T181: =M181+N181+T$83 -> 27 | U181: =J181+U$83 -> 8 | V181: -4 | W181: 137 | X181: -99 | Z181: 1 | AA181: 0 | AB181: 0
E190: 5 | F190: =ROW(F190)-ROW(F$88) -> 102 | G190: 0 | H190: Wireless Port 1 | J190: 100 | K190: 50 | L190: 50 | M190: 50 | N190: 50 | O190: Pattern Wireless | Q190: =H190 -> Wireless Port 1 | S190: =K190+L190+S$83 -> 99 | T190: =M190+N190+T$83 -> 99 | U190: =J190+U$83 -> 99 | V190: -44 | W190: 115 | X190: 37
E191: 6 | F191: =ROW(F191)-ROW(F$88) -> 103 | G191: 0 | H191: Wireless Star 1 | J191: 100 | K191: 50 | L191: 50 | M191: 50 | N191: 50 | O191: Pattern Wireless | Q191: =H191 -> Wireless Star 1 | S191: =K191+L191+S$83 -> 99 | T191: =M191+N191+T$83 -> 99 | U191: =J191+U$83 -> 99 | V191: 44 | W191: 115 | X191: 37
E192: 9 | F192: =ROW(F192)-ROW(F$88) -> 104 | G192: 0 | H192: Wireless Port 2 | J192: 100 | K192: 50 | L192: 50 | M192: 50 | N192: 50 | O192: Pattern Wireless | Q192: =H192 -> Wireless Port 2 | S192: =K192+L192+S$83 -> 99 | T192: =M192+N192+T$83 -> 99 | U192: =J192+U$83 -> 99 | V192: -44 | W192: 115 | X192: -55
E193: 10 | F193: =ROW(F193)-ROW(F$88) -> 105 | G193: 0 | H193: Wireless Star 2 | J193: 100 | K193: 50 | L193: 50 | M193: 50 | N193: 50 | O193: Pattern Wireless | Q193: =H193 -> Wireless Star 2 | S193: =K193+L193+S$83 -> 99 | T193: =M193+N193+T$83 -> 99 | U193: =J193+U$83 -> 99 | V193: 44 | W193: 115 | X193: -55
G194: 0
E195: 1 | F195: =ROW(F195)-ROW(F$88) -> 107 | G195: 0 | H195: Bow Install Prox | J195: 5 | K195: 14 | L195: 14 | M195: 11 | N195: 12 | O195: Pattern Red | Q195: =H195 -> Bow Install Prox | S195: =K195+L195+S$83 -> 27 | T195: =M195+N195+T$83 -> 22 | U195: =J195+U$83 -> 4 | V195: 0 | W195: 127 | X195: 97 | Z195: These sensors are used for lighting and signage, but not required for gravity activation.
E196: 2 | F196: 108 | G196: 0 | H196: Oxygen Res 1 Prox | J196: 9 | K196: 16 | L196: 16 | M196: 16 | N196: 16 | O196: Pattern Red | Q196: =H196 -> Oxygen Res 1 Prox | S196: 31 | T196: 31 | U196: 8 | V196: 0 | W196: 121 | X196: 100
E197: 3 | F197: 109 | G197: 0 | H197: Oxygen Res 2 Prox | J197: 9 | K197: 16 | L197: 16 | M197: 16 | N197: 16 | O197: Pattern Red | Q197: =H197 -> Oxygen Res 2 Prox | S197: 31 | T197: 31 | U197: 8 | V197: 0 | W197: 121 | X197: 80
E198: 3 | F198: 110 | G198: 0 | H198: Garage | J198: 3 | K198: 11 | L198: 11 | M198: 9 | N198: 9 | O198: Pattern Red | Q198: =H198 -> Garage | S198: 21 | T198: 17 | U198: 2 | V198: 0 | W198: 125 | X198: 79
E199: 3 | F199: 111 | G199: 0 | H199: Cargo Prox 1 | J199: 7 | K199: 16 | L199: 16 | M199: 16 | N199: 16 | O199: Pattern Red | Q199: =H199 -> Cargo Prox 1 | S199: 31 | T199: 31 | U199: 6 | V199: 0 | W199: 121 | X199: 53
E200: 5 | F200: 112 | G200: 0 | H200: Cargo Prox 2 | J200: 7 | K200: 16 | L200: 16 | M200: 16 | N200: 16 | O200: Pattern Red | Q200: =H200 -> Cargo Prox 2 | S200: 31 | T200: 31 | U200: 6 | V200: 0 | W200: 121 | X200: 32
E201: 5 | F201: 113 | G201: 0 | H201: Central Hangar A | J201: 8 | K201: 16 | L201: 16 | M201: 16 | N201: 16 | O201: Pattern Red | Q201: =H201 -> Central Hangar A | S201: 31 | T201: 31 | U201: 7 | V201: 0 | W201: 130 | X201: 28
E202: 7 | F202: 114 | G202: 0 | H202: Cent Command Prox | J202: 4 | K202: 15 | L202: 15 | M202: 16 | N202: 3 | O202: Pattern Red | Q202: =H202 -> Cent Command Prox | S202: 29 | T202: 18 | U202: 3 | V202: 0 | W202: 125 | X202: 13
E203: 7 | F203: 115 | G203: 0 | H203: Corridor 1 Prox | J203: 3 | K203: 15 | L203: 15 | M203: 16 | N203: 16 | O203: Pattern Red | Q203: Corridor 1 Prox | S203: 29 | T203: 31 | U203: 2 | V203: 0 | W203: 125 | X203: -9
E204: 9 | F204: 116 | G204: 0 | H204: Quant Physics Prox | J204: 16 | K204: 12 | L204: 5 | M204: 2 | N204: 3 | O204: Pattern Red | Q204: Quant Physics Prox | S204: 16 | T204: 4 | U204: 15 | V204: -19 | W204: 129 | X204: -41
E205: 10 | F205: 117 | G205: 0 | H205: Weapons Cert Prox | J205: 16 | K205: 4 | L205: 13 | M205: 2 | N205: 3 | O205: Pattern Red | Q205: Weapons Cert Prox | S205: 16 | T205: 4 | U205: 15 | V205: 19 | W205: 129 | X205: -42
F207: 119 | G207: 0 | J207: 0 | K207: 0 | L207: 0 | M207: 0 | N207: 0 | Q207: 0 | S207: -1 | T207: -1 | U207: -1 | V207: 0 | W207: 0 | X207: 0
F208: 120 | G208: 0 | J208: 0 | K208: 0 | L208: 0 | M208: 0 | N208: 0 | Q208: =H208 -> 0 | S208: -1 | T208: -1 | U208: -1 | V208: 0 | W208: 0 | X208: 0
F209: 121 | G209: 0 | J209: 0 | K209: 0 | L209: 0 | M209: 0 | N209: 0 | Q209: 0 | S209: -1 | T209: -1 | U209: -1 | V209: 0 | W209: 0 | X209: 0

Sheet Scenarios
B5: Rescue Pod
C6: design a rescue pod with a single engine
C7: material list
B11: Empyrica

Sheet Merchant
B2: Star | C2: Planet | E2: Faction | F2: POI | H2: Commodity | I2: Qty | J2: Buy | K2: Sell | M2: Teleporter
C3: Persephone | E3: Polaris | F3: Trade Station | H3: Leather | J3: 664 | K3: 0 | M3: 1
E4: Talon | H4: Raw Diamond | I4: 5 | K4: 494 | M4: 0
H5: Blue Pepper | I5: 4 | K5: 2550
C14: Bandages | F14: 41
C15: Hot Coffee | F15: 98
C16: Akua Wine | F16: 33
C17: Herbal Tea | F17: 40
C23: GTN
C24: Freighter Database
C25: Missing Cargo
D37: in orbit around Jupiter
D38: Apollon Station | F38: everything blank after reaching
C41: 2473-07-25 | D41: UCH Fleet Departs
D42: Flagship | F42: UCH-002 | G42: M.S. Titan
F43: Station came under attack, fleet chose to depart and continue Operation Phoenix
F44: Off course 325-500k LY, but possibly 3 MM LY
C46: 2473-09-08 | D46: UCH-0111 Heidelberg | F46: Captain Brenner
D47: Class: Pelican | F47: Sergeant Palant, 1st Class UCH-011 Heidelberg
F48: UCH Raiders?
F50: Survivors
F51: Lieutenant Romilly, Acting Captain
F52: Natasha Emerson, Ensign
F54: UCH Expeditionary Fleet
F55: Target galaxy was Proxima Centauri
F56: Off Course: 2.5 M LY to Andromeda Galaxy
F57: Language "Andromeda Trade Standard"
F58: Zirax Warfleet

Sheet Bugs
K31: RE Aiming Reticle for turret is off
K32: if aiming at a nearby block, it seems the hit point of the laser is really about half-distance to the crosshair
K35: IDA Dialog freezes your SV controls at times (starter planet initial Pelican wreckage investigation mission)
